fUST/lending_fUST_20251221
["ID","MTS","AMOUNT","RATE_DAILY","PERIOD"]
[399335927,1766313545790,151.8339466,0.00029342,30]
[399335928,1766313545830,151.8339466,0.00029507,30]
[399335929,1766313545880,151.8339466,0.00029671,30]
[399335930,1766313545923,151.8339466,0.00029808,30]
[399335931,1766313545969,151.8339466,0.00029973,30]
[399335932,1766313546013,151.8339466,0.00030137,30]
[399335933,1766313546057,151.8339466,0.00030274,30]
[399335934,1766313546103,151.8339466,0.00030438,30]
[399335935,1766313546157,151.8339466,0.00030575,30]
[399335936,1766313546615,2000.0,9.438e-05,120]
[399335937,1766313547991,1632.54,8.556e-05,2]
[399335938,1766313548087,3265.09,9.334e-05,2]
[399335939,1766313548200,699.66,0.00029053,30]
[399335940,1766313565850,5000.0,0.0001,10]
[399335941,1766313576402,-265.69471198,8.848e-05,2]
[399335942,1766313576429,-478.25048156,8.89e-05,2]
[399335943,1766313576504,-850.22307832,8.933e-05,2]
[399335944,1766313576668,-2780.26754668,9.438e-05,2]
[399335945,1766313576682,-10000.01,9.438e-05,2]
[399335946,1766313576704,-10000.01,9.438e-05,2]
[399335947,1766313576788,-10000.01,9.438e-05,2]
[399335948,1766313576909,-10000.01,9.438e-05,2]
[399335949,1766313577049,-3102.67116615,9.438e-05,2]
[399335950,1766313577072,-3794.6676677,9.438e-05,2]
[399335951,1766313578213,1328.47355988,8.975e-05,2]
[399335952,1766313579717,1913.00192622,9.018e-05,2]
[399335953,1766313581598,2000.0,0.0003287,30]
[399335954,1766313582288,2603.80817736,9.061e-05,2]
[399335955,1766313584178,3397.49142097,9.103e-05,2]
[399335956,1766313584621,757.23491557,9.338e-05,2]
[399335957,1766313588454,5000.0,0.0001,10]
[399335958,1766313589111,-10000.01,9.338e-05,2]
[399335959,1766313589226,-10000.01,9.338e-05,2]
[399335960,1766313589429,-10000.01,9.338e-05,2]
[399335961,1766313601490,-1573.69,8.57e-05,2]
[399335962,1766313601525,-6852.63,9.338e-05,2]
[399335963,1766313601622,-10000.01,9.338e-05,2]
[399335964,1766313601719,-10000.01,9.338e-05,2]
[399335965,1766313601839,-10000.01,9.338e-05,2]
[399335966,1766313601956,-2059.30670718,9.338e-05,2]
[399335967,1766313601987,-2734.00658564,9.349e-05,2]
[399335968,1766313602024,-413.38341436,9.349e-05,2]
[399335969,1766313605149,8714.82683107,0.00031617,32]
[399335970,1766313605765,5000.0,0.00031617,36]
[399335971,1766313605886,674.44,0.00029783,30]
[399335972,1766313605949,5000.0,0.00031617,30]
[399335973,1766313606130,5000.0,0.00031617,35]
[399335974,1766313606183,1348.88,0.00032491,30]
[399335975,1766313606305,5000.0,0.00031617,35]
[399335976,1766313612112,5000.0,0.0001,10]
[399335977,1766313635311,5000.0,9.344e-05,2]
[399335978,1766313645439,425.698968,0.00032876,31]
[399335991,1766313658144,5000.0,9.344e-05,2]
[399335998,1766313669716,-580.00612334,9.344e-05,2]
[399336003,1766313674216,151.0,0.00032877,31]
[399336004,1766313674524,151.0,0.00032877,31]
[399336005,1766313674892,151.0,0.00032877,31]
[399336006,1766313675178,151.0,0.00032877,31]
[399336007,1766313675498,151.0,0.00032877,31]
[399336008,1766313675794,245.588785,0.00032877,31]
[399336010,1766313680063,1967.47,9.041e-05,2]
[399336013,1766313682749,210.80165159,8.913e-05,2]
[399336015,1766313684457,379.44297286,8.97e-05,2]
[399336016,1766313684809,843.2,0.00026724,30]
[399336017,1766313685733,1686.4,0.00029153,30]
[399336018,1766313686160,2529.6,0.00031582,30]
[399336019,1766313686281,674.56528509,9.026e-05,2]
[399336020,1766313686405,5000.0,9.463e-05,2]
[399336021,1766313686592,169.450077,0.00032877,31]
[399336022,1766313686943,169.450077,0.00032877,31]
[399336023,1766313687263,169.450077,0.00032877,31]
[399336024,1766313687990,607.71784378,9.083e-05,2]
[399336025,1766313688015,446.29041417,9.083e-05,2]
[399336026,1766313689417,1517.77189145,9.139e-05,2]
[399336027,1766313690687,2063.79032939,9.196e-05,2]
[399336028,1766313691786,169.450077,0.00032877,31]
[399336029,1766313696703,169.450077,0.00032877,31]
[399336030,1766313697014,169.450077,0.00032877,31]
[399336031,1766313697324,169.450077,0.00032877,31]
[399336032,1766313697685,169.450077,0.00032877,31]
[399336033,1766313697987,169.450077,0.00032877,31]
[399336034,1766313698404,169.450077,0.00032877,31]
[399336035,1766313698695,169.450077,0.00032877,31]
[399336036,1766313699010,169.450077,0.00032877,31]
[399336037,1766313699303,169.450077,0.00032877,31]
[399336038,1766313699740,169.450077,0.00032877,31]
[399336039,1766313700334,169.450077,0.00032877,31]
[399336040,1766313700644,169.450077,0.00032877,31]
[399336041,1766313700931,169.450077,0.00032877,31]
[399336042,1766313701235,169.450077,0.00032877,31]
[399336043,1766313701552,169.450077,0.00032877,31]
[399336044,1766313701863,169.450082,0.00032877,31]
[399336045,1766313709307,5000.0,9.463e-05,2]
[399336046,1766313710469,151.0,0.00032877,31]
[399336047,1766313710797,151.0,0.00032877,31]
[399336048,1766313711093,227.954211,0.00032877,31]
[399336049,1766313714547,173.088731,0.00032877,31]
[399336050,1766313714836,173.088731,0.00032877,31]
[399336051,1766313715116,173.088731,0.00032877,31]
[399336052,1766313715408,173.088731,0.00032877,31]
[399336053,1766313715710,173.088731,0.00032877,31]
[399336054,1766313716226,173.088731,0.00032877,31]
[399336055,1766313716307,2000.0,0.0003287,30]
[399336056,1766313716631,173.088731,0.00032877,31]
[399336057,1766313716923,173.088731,0.00032877,31]
[399336058,1766313717207,173.088731,0.00032877,31]
[399336059,1766313717483,173.088731,0.00032877,31]
[399336060,1766313717768,173.088731,0.00032877,31]
[399336061,1766313718051,173.088731,0.00032877,31]
[399336062,1766313718382,173.088731,0.00032877,31]
[399336063,1766313718677,173.088731,0.00032877,31]
[399336064,1766313718955,173.088731,0.00032877,31]
[399336065,1766313719258,173.088731,0.00032877,31]
[399336066,1766313719646,173.088731,0.00032877,31]
[399336067,1766313719936,173.088731,0.00032877,31]
[399336068,1766313720232,173.088731,0.00032877,31]
[399336069,1766313720556,173.088738,0.00032877,31]
[399336070,1766313727872,151.0,0.00032877,31]
[399336071,1766313728146,151.0,0.00032877,31]
[399336072,1766313728454,151.0,0.00032877,31]
[399336073,1766313728876,151.0,0.00032877,31]
[399336074,1766313729038,404.553391,0.00032877,31]
[399336075,1766313729267,151.0,0.00032877,31]
[399336076,1766313729375,404.553391,0.00032877,31]
[399336077,1766313729540,151.0,0.00032877,31]
[399336078,1766313729658,404.553391,0.00032877,31]
[399336079,1766313729846,151.0,0.00032877,31]
[399336080,1766313730011,404.553391,0.00032877,31]
[399336081,1766313730150,151.0,0.00032877,31]
[399336082,1766313730324,404.553391,0.00032877,31]
[399336083,1766313730458,151.0,0.00032877,31]
[399336084,1766313730614,404.553391,0.00032877,31]
[399336085,1766313730763,151.0,0.00032877,31]
[399336086,1766313731082,151.0,0.00032877,31]
[399336087,1766313731376,151.0,0.00032877,31]
[399336088,1766313731702,151.0,0.00032877,31]
[399336089,1766313731994,152.001567,0.00032877,31]
[399336090,1766313742536,404.553391,0.00032877,31]
[399336091,1766313742858,404.553391,0.00032877,31]
[399336092,1766313743186,404.553391,0.00032877,31]
[399336093,1766313743512,404.553391,0.00032877,31]
[399336094,1766313743841,404.553391,0.00032877,31]
[399336095,1766313744140,404.553391,0.00032877,31]
[399336096,1766313744455,404.553391,0.00032877,31]
[399336097,1766313744746,404.553391,0.00032877,31]
[399336098,1766313745063,404.553391,0.00032877,31]
[399336099,1766313745358,404.553391,0.00032877,31]
[399336100,1766313746178,404.553391,0.00032877,31]
[399336101,1766313746225,404.553391,0.00032877,31]
[399336102,1766313746255,151.0,0.00032877,31]
[399336103,1766313746340,404.553391,0.00032877,31]
[399336104,1766313746368,151.0,0.00032877,31]
[399336105,1766313746643,404.553398,0.00032877,31]
[399336106,1766313746691,151.0,0.00032877,31]
[399336107,1766313746990,151.0,0.00032877,31]
[399336108,1766313747270,151.0,0.00032877,31]
[399336109,1766313747558,151.0,0.00032877,31]
[399336110,1766313747994,151.0,0.00032877,31]
[399336111,1766313748284,287.37259231,0.00032877,31]
[399336112,1766313750000,151.0,0.00032877,31]
[399336113,1766313750305,151.0,0.00032877,31]
[399336114,1766313750643,151.0,0.00032877,31]
[399336115,1766313750917,162.910781,0.00032877,31]
[399336116,1766313754723,151.0,0.00032877,31]
[399336117,1766313755038,158.770561,0.00032877,31]
[399336118,1766313759472,972.15736499,8.951e-05,2]
[399336119,1766313759494,928.57263501,8.951e-05,2]
[399336120,1766313763462,814.6,0.00026738,30]
[399336121,1766313763851,1629.2,0.00029169,30]
[399336122,1766313764244,2443.8,0.000316,30]
[399336123,1766313769946,176.0,0.00032027,50]
[399336124,1766313770191,201.0,0.00030932,43]
[399336125,1766313770454,230.0,0.00029836,36]
[399336126,1766313770729,262.0,0.0002874,30]
[399336127,1766313771554,151.0,0.00032877,31]
[399336128,1766313771805,150.0,9e-07,2]
[399336129,1766313771863,151.0,0.00032877,31]
[399336130,1766313772231,157.10379,0.00032877,31]
[399336131,1766313772846,150.0,9e-07,2]
[399336132,1766313773865,150.0,9e-07,2]
[399336133,1766313808071,151.249566,0.00032877,31]
[399336134,1766313808392,151.249566,0.00032877,31]
[399336135,1766313808690,151.249566,0.00032877,31]
[399336136,1766313808988,151.249566,0.00032877,31]
[399336137,1766313809308,151.249566,0.00032877,31]
[399336138,1766313809619,151.249566,0.00032877,31]
[399336139,1766313810578,151.249566,0.00032877,31]
[399336140,1766313810633,151.249566,0.00032877,31]
[399336141,1766313810689,151.249566,0.00032877,31]
[399336142,1766313810793,151.249566,0.00032877,31]
[399336143,1766313811083,151.249566,0.00032877,31]
[399336144,1766313811367,151.249566,0.00032877,31]
[399336145,1766313811651,151.249566,0.00032877,31]
[399336146,1766313811950,151.249566,0.00032877,31]
[399336147,1766313812239,151.249566,0.00032877,31]
[399336148,1766313812519,151.249566,0.00032877,31]
[399336149,1766313812805,151.249566,0.00032877,31]
[399336150,1766313813087,151.249566,0.00032877,31]
[399336151,1766313813374,151.249566,0.00032877,31]
[399336152,1766313813671,151.249573,0.00032877,31]
[399336153,1766313817930,500.01,0.00031617,30]
[399336154,1766313822570,151.0,0.00032877,31]
[399336155,1766313822897,151.377198,0.00032877,31]
[399336156,1766313823668,151.0,0.00032877,31]
[399336157,1766313823974,151.0,0.00032877,31]
[399336158,1766313824278,151.0,0.00032877,31]
[399336159,1766313824623,158.544577,0.00032877,31]
[399336160,1766313834233,151.0,0.00032877,31]
[399336161,1766313834524,151.0,0.00032877,31]
[399336162,1766313834808,151.0,0.00032877,31]
[399336163,1766313835103,154.928879,0.00032877,31]
[399336164,1766313837568,1814.33,8.948e-05,2]
[399336165,1766313841562,777.57,0.00026731,30]
[399336166,1766313842430,1555.14,0.00029161,30]
[399336167,1766313842482,2332.71,0.00031591,30]
[399336168,1766313846386,151.0,0.00032877,31]
[399336169,1766313846704,157.739328,0.00032877,31]
[399336170,1766313851345,2000.0,0.0003287,30]
[399336171,1766313856047,151.0,0.00032877,31]
[399336172,1766313856375,192.668726,0.00032877,31]
[399336173,1766313866689,151.0,0.00032877,31]
[399336174,1766313867028,187.814208,0.00032877,31]
[399336175,1766313874722,183.79136,0.00032877,31]
[399336176,1766313874948,151.0,0.00032877,31]
[399336177,1766313875519,151.0,0.00032877,31]
[399336178,1766313875851,151.0,0.00032877,31]
[399336179,1766313876144,151.0,0.00032877,31]
[399336180,1766313876440,151.0,0.00032877,31]
[399336181,1766313876734,151.0,0.00032877,31]
[399336182,1766313877115,298.9793,0.00032877,31]
[399336183,1766313900622,462.75,0.00032877,30]
[399336184,1766313907582,264.139214,0.00032877,31]
[399336185,1766313907770,264.139214,0.00032877,31]
[399336186,1766313908059,264.139214,0.00032877,31]
[399336187,1766313908369,264.139214,0.00032877,31]
[399336188,1766313908671,264.139214,0.00032877,31]
[399336189,1766313908965,264.139214,0.00032877,31]
[399336190,1766313909306,264.139214,0.00032877,31]
[399336191,1766313909682,264.139214,0.00032877,31]
[399336192,1766313909976,264.139214,0.00032877,31]
[399336193,1766313910259,264.139214,0.00032877,31]
[399336194,1766313910582,264.139214,0.00032877,31]
[399336195,1766313910872,264.139214,0.00032877,31]
[399336196,1766313911461,264.139214,0.00032877,31]
[399336197,1766313911751,264.139214,0.00032877,31]
[399336198,1766313912051,264.139214,0.00032877,31]
[399336199,1766313912324,264.139214,0.00032877,31]
[399336200,1766313912607,264.139214,0.00032877,31]
[399336201,1766313912894,264.139214,0.00032877,31]
[399336202,1766313913161,158.601486,0.00032877,31]
[399336203,1766313913452,264.139214,0.00032877,31]
[399336204,1766313913741,264.139213,0.00032877,31]
[399336205,1766313920944,151.0,0.00032877,31]
[399336206,1766313921262,151.0,0.00032877,31]
[399336207,1766313921601,151.0,0.00032877,31]
[399336208,1766313921988,151.0,0.00032877,31]
[399336209,1766313922030,197.594824,0.00032877,31]
[399336210,1766313922281,151.0,0.00032877,31]
[399336211,1766313922370,197.594824,0.00032877,31]
[399336212,1766313922577,151.0,0.00032877,31]
[399336213,1766313922663,197.594824,0.00032877,31]
[399336214,1766313922871,151.0,0.00032877,31]
[399336215,1766313922962,197.594824,0.00032877,31]
[399336216,1766313923149,151.0,0.00032877,31]
[399336217,1766313923260,197.594824,0.00032877,31]
[399336218,1766313923426,151.0,0.00032877,31]
[399336219,1766313923573,197.594824,0.00032877,31]
[399336220,1766313923720,296.214679,0.00032877,31]
[399336221,1766313923881,197.594824,0.00032877,31]
[399336222,1766313924363,197.594824,0.00032877,31]
[399336223,1766313924636,1754.61,9.002e-05,2]
[399336224,1766313924752,197.594824,0.00032877,31]
[399336225,1766313925006,197.594824,0.00032877,31]
[399336226,1766313925300,197.594824,0.00032877,31]
[399336227,1766313925638,197.594824,0.00032877,31]
[399336228,1766313925944,197.594824,0.00032877,31]
[399336229,1766313926242,197.594824,0.00032877,31]
[399336230,1766313926536,197.594824,0.00032877,31]
[399336231,1766313926830,197.594824,0.00032877,31]
[399336232,1766313927139,197.594824,0.00032877,31]
[399336233,1766313927465,197.594824,0.00032877,31]
[399336234,1766313927760,197.594824,0.00032877,31]
[399336235,1766313928925,751.98,0.00025402,30]
[399336236,1766313929116,1503.95,0.00027711,30]
[399336237,1766313929519,2255.93,0.0003002,30]
[399336238,1766313929923,3007.91,0.0003233,30]
[399336239,1766313932271,151.0,0.00032877,31]
[399336240,1766313932574,151.0,0.00032877,31]
[399336241,1766313932853,151.0,0.00032877,31]
[399336242,1766313933141,160.684883,0.00032877,31]
[399336243,1766313934039,197.594817,0.00032877,31]
[399336244,1766313984761,168.468625,0.00032877,31]
[399336245,1766313985078,168.468625,0.00032877,31]
[399336246,1766313985388,168.468625,0.00032877,31]
[399336247,1766313985698,168.468625,0.00032877,31]
[399336248,1766313985813,2000.0,0.0003287,30]
[399336249,1766313985996,168.468625,0.00032877,31]
[399336250,1766313986336,168.468625,0.00032877,31]
[399336251,1766313986666,168.468625,0.00032877,31]
[399336252,1766313986970,168.468625,0.00032877,31]
[399336253,1766313987255,168.468625,0.00032877,31]
[399336254,1766313987547,168.468625,0.00032877,31]
[399336255,1766313987837,168.468625,0.00032877,31]
[399336256,1766313988123,168.468625,0.00032877,31]
[399336257,1766313988408,168.468625,0.00032877,31]
[399336258,1766313988754,168.468625,0.00032877,31]
[399336259,1766313989062,168.468625,0.00032877,31]
[399336260,1766313989357,168.468625,0.00032877,31]
[399336261,1766313989656,168.468625,0.00032877,31]
[399336262,1766313990233,168.468625,0.00032877,31]
[399336263,1766313990279,168.468625,0.00032877,31]
[399336264,1766313990523,168.468616,0.00032877,31]
[399336265,1766313994047,165.350265,0.00032877,31]
[399336266,1766314002052,1636.58,8.94e-05,2]
[399336267,1766314006362,701.39,0.00026374,30]
[399336268,1766314006646,151.0,0.00032877,31]
[399336269,1766314006790,1402.78,0.00028772,30]
[399336270,1766314006972,168.039669,0.00032877,31]
[399336271,1766314007185,2104.17,0.00031169,30]
[399336272,1766314029593,290.487302,0.00032877,31]
[399336273,1766314080980,1562.19,8.93e-05,2]
[399336274,1766314081174,1000.62,0.00032876,120]
[399336275,1766314087460,190.0,0.00032548,54]
[399336276,1766314087720,232.0,0.00030904,43]
[399336277,1766314088053,182.0,0.00029808,36]
[399336278,1766314088176,669.51,0.00025852,30]
[399336279,1766314088310,209.0,0.00028712,30]
[399336280,1766314088591,1339.02,0.00028202,30]
[399336281,1766314089510,2008.52,0.00030552,30]
[399336282,1766314100349,159.682754,0.00032877,31]
[399336283,1766314102886,157.25368,0.00032877,31]
[399336284,1766314103230,157.25368,0.00032877,31]
[399336285,1766314103523,157.25368,0.00032877,31]
[399336286,1766314103811,157.25368,0.00032877,31]
[399336287,1766314104107,157.25368,0.00032877,31]
[399336288,1766314104400,157.25368,0.00032877,31]
[399336289,1766314104689,157.25368,0.00032877,31]
[399336290,1766314110700,160.846283,0.00032877,31]
[399336291,1766314112591,157.25368,0.00032877,31]
[399336292,1766314112628,157.25368,0.00032877,31]
[399336293,1766314112670,157.25368,0.00032877,31]
[399336294,1766314112954,157.25368,0.00032877,31]
[399336295,1766314113392,157.25368,0.00032877,31]
[399336296,1766314113677,157.25368,0.00032877,31]
[399336297,1766314113967,157.25368,0.00032877,31]
[399336298,1766314114557,157.25368,0.00032877,31]
[399336299,1766314114849,157.25368,0.00032877,31]
[399336300,1766314115150,157.25368,0.00032877,31]
[399336301,1766314115440,157.25368,0.00032877,31]
[399336302,1766314115884,157.25368,0.00032877,31]
[399336303,1766314116219,157.25368,0.00032877,31]
[399336304,1766314118304,374.729196,0.00032877,31]
[399336305,1766314118607,374.729196,0.00032877,31]
[399336306,1766314118887,374.729196,0.00032877,31]
[399336307,1766314119187,374.729196,0.00032877,31]
[399336308,1766314119477,374.729196,0.00032877,31]
[399336309,1766314119822,374.729196,0.00032877,31]
[399336310,1766314120230,2000.0,0.0003287,30]
[399336311,1766314120341,374.729196,0.00032877,31]
[399336312,1766314120628,374.729196,0.00032877,31]
[399336313,1766314121201,374.729196,0.00032877,31]
[399336314,1766314121254,374.729196,0.00032877,31]
[399336315,1766314121519,374.729196,0.00032877,31]
[399336316,1766314121816,374.729196,0.00032877,31]
[399336317,1766314122114,374.729196,0.00032877,31]
[399336318,1766314122406,374.729196,0.00032877,31]
[399336319,1766314123064,374.729196,0.00032877,31]
[399336320,1766314123135,374.729196,0.00032877,31]
[399336321,1766314123424,374.729196,0.00032877,31]
[399336322,1766314123717,374.729196,0.00032877,31]
[399336323,1766314124025,374.729196,0.00032877,31]
[399336324,1766314124343,374.729202,0.00032877,31]
[399336325,1766314159621,218.06177,0.00032877,31]
[399336326,1766314161996,5000.0,0.0003287,30]
[399336327,1766314162203,1491.18,8.942e-05,2]
[399336328,1766314166822,639.08,0.00026044,30]
[399336329,1766314167204,1278.15,0.00028412,30]
[399336330,1766314167638,1917.23,0.0003078,30]
[399336331,1766314176003,400.560756,0.00032877,31]
[399336332,1766314176203,400.560756,0.00032877,31]
[399336333,1766314176499,400.560756,0.00032877,31]
[399336334,1766314176787,400.560756,0.00032877,31]
[399336335,1766314177083,400.560756,0.00032877,31]
[399336336,1766314177364,400.560756,0.00032877,31]
[399336337,1766314177979,400.560756,0.00032877,31]
[399336338,1766314178027,400.560756,0.00032877,31]
[399336339,1766314178268,400.560756,0.00032877,31]
[399336340,1766314178567,400.560756,0.00032877,31]
[399336341,1766314178908,400.560756,0.00032877,31]
[399336342,1766314179197,400.560756,0.00032877,31]
[399336343,1766314179545,400.560756,0.00032877,31]
[399336344,1766314179829,400.560756,0.00032877,31]
[399336345,1766314180181,400.560756,0.00032877,31]
[399336346,1766314180467,400.560756,0.00032877,31]
[399336347,1766314180756,400.560756,0.00032877,31]
[399336348,1766314181092,400.560756,0.00032877,31]
[399336349,1766314181379,400.560756,0.00032877,31]
[399336350,1766314181686,400.560759,0.00032877,31]
[399336351,1766314198502,262.823549,0.00032877,31]
[399336352,1766314198532,262.823549,0.00032877,31]
[399336353,1766314198628,262.823549,0.00032877,31]
[399336354,1766314198926,262.823549,0.00032877,31]
[399336355,1766314199240,262.823549,0.00032877,31]
[399336356,1766314199809,262.823549,0.00032877,31]
[399336357,1766314199855,262.823549,0.00032877,31]
[399336358,1766314200102,262.823549,0.00032877,31]
[399336359,1766314200397,262.823549,0.00032877,31]
[399336360,1766314200712,262.823549,0.00032877,31]
[399336361,1766314201140,262.823549,0.00032877,31]
[399336362,1766314201466,262.823549,0.00032877,31]
[399336363,1766314201757,262.823549,0.00032877,31]
[399336364,1766314202137,262.823549,0.00032877,31]
[399336365,1766314202465,262.823549,0.00032877,31]
[399336366,1766314202778,262.823549,0.00032877,31]
[399336367,1766314203086,262.823549,0.00032877,31]
[399336368,1766314203402,262.823549,0.00032877,31]
[399336369,1766314203851,262.823549,0.00032877,31]
[399336370,1766314204149,262.823553,0.00032877,31]
[399336371,1766314227096,195.765928,0.00032877,31]
[399336386,1766314232225,-314.1395756,9.583e-05,2]
[399336387,1766314232235,-568.40600088,9.66e-05,2]
[399336388,1766314232245,-424.82721681,9.736e-05,2]
[399336418,1766314233838,151.0,0.00032877,31]
[399336419,1766314234194,151.0,0.00032877,31]
[399336420,1766314234861,151.0,0.00032877,31]
[399336421,1766314234908,151.0,0.00032877,31]
[399336422,1766314235074,292.540077,0.00032877,31]
[399336627,1766314240854,1441.99,8.973e-05,2]
[399336820,1766314242747,151.0,0.00032877,31]
[399336855,1766314243067,151.0,0.00032877,31]
[399336886,1766314243367,151.0,0.00032877,31]
[399336888,1766314243384,-775.17278319,9.736e-05,2]
[399336889,1766314243394,-297.0,9.736e-05,2]
[399336890,1766314243403,-240.82721681,9.736e-05,2]
[399336891,1766314243650,151.0,0.00032877,31]
[399336907,1766314243925,151.0,0.00032877,31]
[399336936,1766314244204,154.728,0.00032877,31]
[399336990,1766314245012,618.0,0.00025813,30]
[399337032,1766314245409,1235.99,0.0002816,30]
[399337074,1766314245817,1853.99,0.00030506,30]
[399337116,1766314246253,2471.99,0.00032853,30]
[399337319,1766314255019,2000.0,0.0003287,30]
[399337320,1766314302557,3056.67,0.0003287,30]
[399337321,1766314307409,174.252,0.00031763,30]
[399337322,1766314307460,2000.0,0.00032876,30]
[399337569,1766314319027,1352.81,8.961e-05,2]
[399337709,1766314323050,579.78,0.00025466,30]
[399337726,1766314323485,1159.55,0.00027781,30]
[399337741,1766314323884,1739.33,0.00030096,30]
[399337756,1766314324292,2319.11,0.00032411,30]
[399338505,1766314352797,151.0,0.00032877,31]
[399338511,1766314352959,151.0,0.00032877,31]
[399338515,1766314353272,151.0,0.00032877,31]
[399338521,1766314353574,151.0,0.00032877,31]
[399338530,1766314353885,151.0,0.00032877,31]
[399338541,1766314354336,193.692795,0.00032877,31]
[399339405,1766314389304,2000.0,0.0003287,30]
[399339590,1766314396871,760.65,8.934e-05,2]
[399339592,1766314396894,513.42,8.934e-05,2]
[399339762,1766314404417,213.0,0.00031452,46]
[399339771,1766314404728,202.0,0.00029808,36]
[399339789,1766314405384,159.0,0.00028712,30]
[399340291,1766314426476,300.0,0.00032877,30]
[399340617,1766314440638,300.0,0.00032877,30]
[399340820,1766314450298,414.0,0.00032877,30]
[399341395,1766314475990,1275.24,8.981e-05,2]
[399342369,1766314523933,2000.0,0.0003287,30]
[399342550,1766314532360,154.323394,0.00032877,31]
[399342958,1766314556084,1275.17,9.06e-05,2]
[399342959,1766314619478,26282.71,0.00032877,120]
[399342962,1766314637248,1322.49,9.033e-05,2]
[399342963,1766314657540,2000.0,0.0003287,30]
[399342964,1766314674240,-996.38,0.00038735,30]
[399342965,1766314674285,-996.38,0.00038735,30]
[399342966,1766314674326,-996.38,0.00038735,30]
[399342967,1766314674368,-996.38,0.00038735,30]
[399342968,1766314674408,-996.38,0.00038735,30]
[399342969,1766314674447,-996.38,0.00038735,30]
[399342970,1766314674490,-996.38,0.00038735,30]
[399342971,1766314674529,-996.38,0.00038735,30]
[399342972,1766314674568,-996.38,0.00038735,30]
[399342973,1766314674605,-996.38,0.00038735,30]
[399342974,1766314674642,-996.38,0.00038735,30]
[399342975,1766314674685,-996.38,0.00038735,30]
[399342976,1766314674718,-996.38,0.00038735,30]
[399342977,1766314674751,-996.38,0.00038735,30]
[399342978,1766314674787,-996.38,0.00038735,30]
[399342979,1766314674821,-996.38,0.00038735,30]
[399342980,1766314675222,-996.38,0.00038735,30]
[399342981,1766314675264,-996.38,0.00038735,30]
[399342982,1766314675303,-996.38,0.00038735,30]
[399342983,1766314675344,-996.38,0.00038735,30]
[399342984,1766314675384,-996.38,0.00038735,30]
[399342985,1766314675422,-996.38,0.00038735,30]
[399342986,1766314675462,-996.38,0.00038735,30]
[399342987,1766314675500,-996.53417448,0.00038735,30]
[399342988,1766314675537,-915.08258444,0.00038735,30]
[399342989,1766314675574,-894.16714745,0.00038735,30]
[399342990,1766314675610,-1548.61406251,0.00038735,30]
[399342991,1766314675645,-500.0,0.00038735,30]